fUST/lending_fUST_20240211
["ID","MTS","AMOUNT","RATE_DAILY","PERIOD"]
[313698228,1707593475946,154.8915759,0.00016385,2]
[313698229,1707593476316,628.66350238,0.00016385,2]
[313698230,1707593480687,159222.13432378,0.00016385,2]
[313698231,1707593480714,126181.54894058,0.00016385,2]
[313698232,1707593480855,5000.0,0.00020097,5]
[313698233,1707593481058,3353.58169145,0.000201,4]
[313698234,1707593486515,7287.53290783,0.00016385,2]
[313698235,1707593486568,155.75146699,0.00016385,2]
[313698236,1707593491949,307.55667526,0.00016385,2]
[313698237,1707593500784,285403.68326436,0.00016385,2]
[313698238,1707593518693,285403.68326436,0.00016385,2]
[313698239,1707593538690,124204.25160087,0.00016385,2]
[313698355,1707594283469,938.108996,0.00015795,2]
[313698361,1707594337880,208.4807768,0.00015583,2]
[313698362,1707594384655,202.75560455,0.00016481,2]
[313698364,1707594396090,-209.95104642,0.0001657,2]
[313698381,1707594425098,-154.8915759,0.00016568,2]
[313698382,1707594425121,-0.01547987,0.00016568,2]
[313698383,1707594426322,-247.39952375,0.00016567,2]
[313698384,1707594426351,-20.08542596,0.00016568,2]
[313698388,1707594436099,-294.68032616,0.00016567,2]
[313698389,1707594436122,-167.24924809,0.00016567,2]
[313698390,1707594436143,-232.9560132,0.00016568,2]
[313698456,1707594631696,-523.84984319,0.00016549,2]
[313698458,1707594631707,-154.87609912,0.0001655,2]
[313698459,1707594631718,-5000.0,0.00016551,2]
[313698461,1707594631727,-1297.90163565,0.00016552,2]
[313698463,1707594631737,-2468.3658084,0.00016552,2]
[313698465,1707594631746,-6809.12315047,0.00016552,2]
[313698467,1707594631756,-678.94138998,0.00016553,2]
[313698469,1707594631764,-261.98617996,0.00016553,2]
[313698471,1707594631773,-563.40891521,0.00016554,2]
[313698473,1707594631782,-1018.7537034,0.00016554,2]
[313698476,1707594631792,-199.84055074,0.00016554,2]
[313698479,1707594631800,-179.284348,0.00016555,2]
[313698482,1707594631809,-232.5449273,0.00016555,2]
[313698485,1707594631818,-199.84055074,0.00016555,2]
[313698488,1707594631827,-83966.30557397,0.00016556,2]
[313698490,1707594631836,-20966.36090034,0.00016557,2]
[313698492,1707594631845,-214.1569826,0.00016565,2]
[313698494,1707594631854,-155.44482116,0.00016571,2]
[313698496,1707594631864,-294.73498546,0.00016571,2]
[313698498,1707594631873,-209.39364687,0.00016572,2]
[313698500,1707594631883,-24900.0,0.0001659,2]
[313698502,1707594631891,-200.0,0.00017385,2]
[313698504,1707594631900,-162.21176964,0.00017606,2]
[313698506,1707594631910,-5161.22996607,0.00018897,2]
[313698509,1707594631922,-2211.12524838,0.00018897,2]
[313698511,1707594631931,-707.95137691,0.000189,2]
[313698512,1707594631940,-280.0,0.00019124,2]
[313698515,1707594631950,-169.069095,0.00019178,2]
[313698516,1707594631960,-1214.48582293,0.00019893,2]
[313698661,1707594637996,-247.39952375,0.00016549,2]
[313698662,1707594638006,-232.5449273,0.00016549,2]
[313698663,1707594638015,-1691.76553215,0.00019893,2]
[313698664,1707594638025,-2091.03843255,0.0002,2]
[313698665,1707594638035,-324.18448095,0.0002,2]
[313698666,1707594638044,-484.24842505,0.00020099,2]
[313698667,1707594638054,-327.00477866,0.00020822,2]
[313698668,1707594638063,-500.0,0.00020822,2]
[313698669,1707594638073,-434.89494355,0.00020822,2]
[313698670,1707594638082,-360.89941862,0.00020822,2]
[313698671,1707594638092,-1962.08695395,0.00020995,2]
[313698672,1707594638102,-163.17551542,0.00020995,2]
[313698673,1707594638112,-154.90705577,0.00020995,2]
[313698674,1707594638121,-651.85853467,0.00020996,2]
[313698675,1707594638131,-175.76112221,0.00020996,2]
[313698676,1707594638141,-209.83113652,0.00020996,2]
[313698677,1707594638150,-7311.97895175,0.00020999,2]
[313698678,1707594638160,-391.0,0.00021036,2]
[313698679,1707594638169,-32683.01521406,0.000212,2]
[313698680,1707594638179,-11647.98461827,0.000212,2]
[313698681,1707594638190,-12739.00074908,0.000212,2]
[313698682,1707594638199,-16148.57156252,0.00021209,2]
[313698683,1707594638208,-50000.0,0.00021209,2]
[313698684,1707594638218,-20933.53573456,0.0002121,2]
[313698685,1707594638228,-1434.09189254,0.00021211,2]
[313698686,1707594638237,-155.08995217,0.00021211,2]
[313698687,1707594638246,-15982.78027471,0.00021212,2]
[313698688,1707594638259,-21085.92279459,0.00021212,2]
[313698689,1707594638269,-2045.10360038,0.00021212,2]
[313698690,1707594638278,-473.63245767,0.00021818,2]
[313698691,1707594638288,-1993.17068603,0.00021828,2]
[313698692,1707594638299,-649.02089528,0.00021828,2]
[313698693,1707594638308,-174.3672193,0.00021828,2]
[313698694,1707594638317,-4878.5710956,0.00021828,2]
[313698695,1707594638327,-166.666666,0.00021918,2]
[313698696,1707594638337,-166.666666,0.00022431,2]
[313698697,1707594638347,-166.666666,0.00022944,2]
[313698698,1707594638356,-7179.73877875,0.00023,2]
[313698699,1707594638367,-262.58095141,0.00023,2]
[313698707,1707594640985,-500.0,0.00023,2]
[313698708,1707594640998,-2030.92931643,0.00023,2]
[313698709,1707594641008,-741.82846738,0.00023,2]
[313698710,1707594641017,-200.0,0.0002314,7]
[313698711,1707594641027,-348.0,0.0002314,7]
[313698712,1707594641037,-166.666666,0.00023456,2]
[313698713,1707594641046,-938.108996,0.00023692,2]
[313698714,1707594641056,-473.63245767,0.00023705,2]
[313698715,1707594641065,-707.95137691,0.000239,2]
[313698716,1707594641074,-166.666666,0.00023969,2]
[313698717,1707594641085,-308.04492108,0.00024,2]
[313698778,1707594642766,-285.0103015,0.00024,2]
[313698780,1707594642775,-335.25025476,0.00024116,2]
[313698782,1707594642784,-166.666666,0.00024482,2]
[313698784,1707594642794,-5000.0,0.0002467,2]
[313698786,1707594642803,-4685.27692793,0.00024764,2]
[313698788,1707594642812,-1653.5673626,0.00024765,2]
[313698789,1707594642822,-261.86224067,0.00024765,7]
[313698791,1707594642831,-7410.35268892,0.00025,2]
[313698793,1707594642840,-335.73756915,0.00025,2]
[313698794,1707594642850,-4740.91143851,0.00025,2]
[313698796,1707594642859,-1556.34990313,0.00025,2]
[313698798,1707594642869,-284.71676918,0.00025,2]
[313698799,1707594642877,-1000.0,0.00025015,3]
[313698801,1707594642887,-1000.0,0.00025015,3]
[313698803,1707594642896,-200.0,0.00025453,7]
[313698805,1707594642904,-200.0,0.00025453,7]
[313698806,1707594642914,-368.0,0.00025453,7]
[313698808,1707594642923,-473.63245767,0.00025592,2]
[313698810,1707594642933,-154.87609912,0.00026,2]
[313698811,1707594642942,-154.87609912,0.00026,7]
[313698813,1707594642951,-280.60910696,0.00026,2]
[313698815,1707594642961,-153.0,0.00026027,2]
[313698817,1707594642970,-5000.0,0.000264,2]
[313698818,1707594642979,-4047.73678734,0.000264,2]
[313698821,1707594642994,-763.59512221,0.000264,2]
[313698824,1707594645021,1995.31960382,0.00016058,2]
[313698833,1707594646229,-179.19662576,0.00023999,2]
[313698834,1707594646238,-5405.10762519,0.00024669,2]
[313698847,1707594832921,1993.92368867,0.0001631,2]
[313698876,1707595269702,289.261463,0.00016229,2]
[313698882,1707595580984,19072.38880795,0.00016229,2]
[313698892,1707595635109,-154.87609912,0.00016507,2]
[313698893,1707595635131,-46.70132889,0.00016507,2]
[313698897,1707595637117,24900.0,0.00016311,2]
[313698898,1707595644099,-182.20287696,0.00016507,2]
[313698899,1707595644119,-2.86884346,0.00016508,2]
[313698912,1707595757520,247.39952375,0.00016499,2]
[313698913,1707595765445,-2542676.19045824,0.00042053,60]
[313698914,1707595765468,-2491.12849891,0.00042053,120]
[313698915,1707595765490,-1687.57380737,0.00042053,120]
[313698916,1707595765514,-500.0,0.00042053,120]
[313698917,1707595765538,-1569.67051381,0.00042053,90]
[313698918,1707595765562,-198.67369973,0.00042053,120]
[313698919,1707595765585,-968.96751337,0.00042053,120]
[313698920,1707595765609,-1147.17978236,0.00042053,120]
[313698921,1707595765632,-314.34623811,0.00042053,120]
[313698922,1707595765656,-2446.388587,0.00042053,120]
[313698923,1707595765679,-3000.0,0.00042053,65]
[313698924,1707595765702,-2695.353282,0.00042053,35]
[313698925,1707595765726,-5839.96770104,0.00042053,120]
[313698926,1707595765749,-1772.84731731,0.00042053,120]
[313698927,1707595765772,-206.0,0.00042053,120]
[313698928,1707595765795,-2051.4431747,0.00042053,60]
[313698929,1707595765819,-41102.08796896,0.00042053,120]
[313698930,1707595765843,-5000.0,0.00042053,120]
[313698931,1707595765865,-5000.0,0.00042053,120]
[313698932,1707595765892,-5000.0,0.00042053,120]
[313698933,1707595765913,-5000.0,0.00042053,120]
[313698934,1707595765937,-5000.0,0.00042053,120]
[313698935,1707595765959,-5000.0,0.00042053,120]
[313698936,1707595765981,-5000.0,0.00042053,120]
[313698938,1707595766002,-5000.0,0.00042053,120]
[313698939,1707595766024,-5000.0,0.00042053,120]
[313698940,1707595766046,-5000.0,0.00042053,120]
[313698941,1707595766067,-5000.0,0.00042053,120]
[313698942,1707595766089,-5000.0,0.00042053,120]
[313698943,1707595766112,-5000.0,0.00042053,120]
[313698944,1707595766134,-5000.0,0.00042053,120]
[313698945,1707595766155,-5000.0,0.00042053,120]
[313698946,1707595766177,-5000.0,0.00042053,120]
[313698947,1707595766199,-5000.0,0.00042053,120]
[313698948,1707595766221,-5000.0,0.00042053,120]
[313698949,1707595766244,-5000.0,0.00042053,120]
[313698950,1707595766266,-5000.0,0.00042053,120]
[313698951,1707595766288,-5000.0,0.00042053,120]
[313698952,1707595766311,-5000.0,0.00042053,120]
[313698953,1707595766335,-5000.0,0.00042053,120]
[313698954,1707595766358,-5000.0,0.00042053,120]
[313698955,1707595766380,-4434.77161592,0.00042053,120]
[313698956,1707595766403,-50321.47610584,0.00042053,120]
[313698957,1707595766535,-7066.33764297,0.00042053,40]
[313698958,1707595766585,-6141.01126727,0.00042053,120]
[313698959,1707595766607,-17721.91975958,0.00042053,120]
[313698960,1707595766629,-40002.36219439,0.00042053,120]
[313698961,1707595766652,-14670.00420453,0.00042053,120]
[313698962,1707595766674,-496.44270753,0.00042053,120]
[313698963,1707595766697,-6011.0,0.00042053,120]
[313698964,1707595766719,-1502.3821726,0.00042053,35]
[313698965,1707595766742,-1603.38069299,0.00042053,120]
[313698966,1707595766764,-156.19751457,0.00042053,120]
[313698967,1707595766786,-3547.75293956,0.00042053,60]
[313698968,1707595766808,-3000.0,0.00042053,120]
[313698969,1707595766829,-3000.0,0.00042053,70]
[313698970,1707595766851,-3000.0,0.00042053,80]
[313698971,1707595766872,-23773.45046568,0.00042053,120]
[313698972,1707595766896,-1058.01898427,0.00042053,120]
[313698973,1707595766917,-5173.32812186,0.00042053,120]
[313698974,1707595766940,-392.0013034,0.00042053,35]
[313698975,1707595766963,-241801.9979244,0.00042053,120]
[313698976,1707595766985,-2423.9302313,0.00042053,50]
[313698977,1707595767084,-820.31578182,0.00042053,120]
[313698978,1707595767112,-4000.0,0.00042053,60]
[313698979,1707595767134,-4000.0,0.00042053,90]
[313698980,1707595767156,-9682.0,0.00042053,120]
[313698981,1707595767177,-6000.0,0.00042053,60]
[313698982,1707595767204,-9682.0,0.00042053,90]
[313698983,1707595767227,-201.505097,0.00042053,120]
[313698984,1707595767249,-150.69103622,0.00042053,120]
[313698988,1707595786620,261.98617996,0.00016499,2]
[313698989,1707595792164,678.94138998,0.00016499,2]
[313698990,1707595795722,199.84055074,0.00016499,2]
[313698991,1707595804680,-90101.6962106,0.000295,30]
[313698992,1707595804903,-1000.0,0.0003,30]
[313698993,1707595804927,-453864.64592633,0.0003,30]
[313698994,1707595804950,-1000.0,0.0003,30]
[313698995,1707595804973,-54033.65786307,0.0003,30]
[313698998,1707595808835,-145791.4880963,0.0003,30]
[313698999,1707595808861,-10047.318795,0.0003,30]
[313699000,1707595808883,-628.51407157,0.0003,30]
[313699001,1707595808909,-2450.0,0.0003,30]
[313699002,1707595808934,-217.0,0.0003066,30]
[313699003,1707595808956,-205.0,0.0003066,30]
[313699004,1707595808982,-275.0,0.0003066,30]
[313699005,1707595809004,-217.0,0.0003067,30]
[313699006,1707595809026,-205.0,0.0003067,30]
[313699007,1707595809048,-275.0,0.0003067,30]
[313699008,1707595809073,-169.19,0.0003067,30]
[313699009,1707595809096,-150.5,0.0003067,30]
[313699010,1707595809118,-150.5,0.0003067,30]
[313699011,1707595809140,-150.5,0.0003067,30]
[313699012,1707595809162,-176.4,0.0003067,30]
[313699013,1707595809184,-217.0,0.0003068,30]
[313699014,1707595809207,-275.0,0.0003068,30]
[313699015,1707595809230,-205.0,0.0003068,30]
[313699016,1707595809251,-150.5,0.0003068,30]
[313699017,1707595809273,-150.5,0.0003068,30]
[313699018,1707595809295,-150.5,0.0003068,30]
[313699019,1707595809317,-150.5,0.0003068,30]
[313699020,1707595809340,-150.5,0.0003068,30]
[313699021,1707595809363,-150.5,0.0003069,30]
[313699022,1707595809385,-150.5,0.0003069,30]
[313699023,1707595809407,-150.5,0.0003069,30]
[313699024,1707595809429,-150.5,0.0003069,30]
[313699025,1707595809451,-150.5,0.0003069,30]
[313699026,1707595809473,-6049.0,0.0003087,30]
[313699027,1707595809495,-260.0,0.0003087,30]
[313699028,1707595809516,-202.0,0.0003087,30]
[313699029,1707595809538,-6049.0,0.0003088,30]
[313699030,1707595809560,-260.0,0.0003088,30]
[313699031,1707595809582,-202.0,0.0003088,30]
[313699032,1707595809605,-6049.0,0.0003089,30]
[313699033,1707595809628,-260.0,0.0003089,30]
[313699034,1707595809652,-202.0,0.0003089,30]
[313699035,1707595809675,-6490.0,0.0003097,30]
[313699036,1707595809696,-6490.0,0.0003098,30]
[313699037,1707595809719,-6490.0,0.0003099,30]
[313699038,1707595809741,-1000.0,0.00031,31]
[313699039,1707595809762,-500.0,0.00031,30]
[313699040,1707595809784,-1000.0,0.00031,31]
[313699041,1707595809806,-260.0,0.0003187,30]
[313699042,1707595809828,-202.0,0.0003187,30]
[313699043,1707595809852,-6049.0,0.0003187,30]
[313699044,1707595809874,-226.59,0.0003187,30]
[313699045,1707595809899,-217.0,0.0003187,30]
[313699046,1707595809926,-205.0,0.0003187,30]
[313699047,1707595809949,-260.0,0.0003188,30]
[313699048,1707595809971,-202.0,0.0003188,30]
[313699049,1707595809994,-6049.0,0.0003188,30]
[313699050,1707595810016,-156.09,0.0003188,30]
[313699051,1707595810037,-150.5,0.0003188,30]
[313699052,1707595810059,-217.0,0.0003188,30]
[313699053,1707595810081,-205.0,0.0003188,30]
[313699054,1707595810104,-260.0,0.0003189,30]
[313699055,1707595810126,-202.0,0.0003189,30]
[313699056,1707595810150,-6049.0,0.0003189,30]
[313699057,1707595810173,-154.29,0.0003189,30]
[313699058,1707595810195,-150.5,0.0003189,30]
[313699059,1707595810217,-150.5,0.0003189,30]
[313699060,1707595810238,-217.0,0.0003189,30]
[313699061,1707595810260,-205.0,0.0003189,30]
[313699062,1707595810283,-249.0,0.0003195,30]
[313699063,1707595810305,-275.0,0.0003196,30]
[313699064,1707595810327,-6490.0,0.0003196,30]
[313699065,1707595810350,-275.0,0.0003197,30]
[313699066,1707595810372,-6490.0,0.0003197,30]
[313699067,1707595810394,-275.0,0.0003198,30]
[313699068,1707595810416,-6490.0,0.0003198,30]
[313699069,1707595810439,-1000.0,0.00032,32]
[313699070,1707595810461,-158.89063618,0.00032,30]
[313699071,1707595810483,-4945.6612205,0.00032,30]
[313699072,1707595810506,-1000.0,0.00032,32]
[313699073,1707595810528,-16571.79615905,0.00032,30]
[313699074,1707595810553,-162.105135,0.00032877,33]
[313699075,1707595810575,-162.105135,0.00032877,41]
[313699076,1707595810597,-162.105135,0.00032877,49]
[313699077,1707595810620,-162.105135,0.00032877,57]
[313699078,1707595810642,-162.105135,0.00032877,64]
[313699079,1707595810664,-162.105135,0.00032877,72]
[313699080,1707595810686,-162.105135,0.00032877,80]
[313699081,1707595810708,-162.105135,0.00032877,88]
[313699082,1707595810730,-162.105135,0.00032877,96]
[313699083,1707595810752,-162.105135,0.00032877,104]
[313699084,1707595810775,-162.105135,0.00032877,112]
[313699085,1707595810797,-162.105135,0.00032877,120]
[313699086,1707595810820,-1000.0,0.00033,33]
[313699087,1707595810859,-1000.0,0.00033,33]
[313699088,1707595810884,-6616.58584872,0.00033,30]
[313699089,1707595810912,-1207.0343725,0.00033395,30]
[313699090,1707595810938,-1000.0,0.00034,34]
[313699091,1707595811128,-193.6222896,0.00034,120]
[313699092,1707595811150,-1000.0,0.00034,34]
[313699093,1707595811174,-4481.33397838,0.00034898,120]
[313699094,1707595811197,-1000.0,0.00035,35]
[313699095,1707595811219,-1000.0,0.00035,35]
[313699096,1707595811241,-20000.0,0.00035,120]
[313699097,1707595811263,-20000.0,0.00035,30]
[313699098,1707595811286,-151.0,0.00035,30]
[313699099,1707595811309,-151.0,0.000353,30]
[313699100,1707595811332,-151.0,0.000356,30]
[313699101,1707595811356,-151.0,0.000359,30]
[313699102,1707595811379,-1000.0,0.00036,36]
[313699103,1707595811402,-9920.94773506,0.00036,90]
[313699104,1707595811427,-1000.0,0.00036,36]
[313699105,1707595811449,-848.78698619,0.00036,120]
[313699106,1707595811473,-151.0,0.000362,30]
[313699107,1707595811500,-151.0,0.000365,30]
[313699108,1707595811522,-6490.0,0.0003658,30]
[313699109,1707595811544,-6049.0,0.0003658,30]
[313699110,1707595811567,-6490.0,0.0003659,30]
[313699111,1707595811591,-6049.0,0.0003659,30]
[313699112,1707595811613,-151.0,0.000368,30]
[313699113,1707595811635,-202.0,0.0003688,30]
[313699114,1707595811657,-260.0,0.0003688,30]
[313699115,1707595811678,-202.0,0.0003689,30]
[313699116,1707595811703,-260.0,0.0003689,30]
[313699117,1707595811725,-1000.0,0.00037,37]
[313699118,1707595811747,-1000.0,0.00037,37]
[313699119,1707595811769,-200.0,0.00037,120]
[313699120,1707595811791,-151.0,0.000371,30]
[313699121,1707595811813,-151.0,0.000374,30]
[313699122,1707595811836,-151.0,0.000377,30]
[313699123,1707595811858,-275.0,0.0003798,30]
[313699124,1707595811880,-205.0,0.0003798,30]
[313699125,1707595811903,-217.0,0.0003798,30]
[313699126,1707595811927,-275.0,0.0003799,30]
[313699127,1707595811950,-205.0,0.0003799,30]
[313699128,1707595811973,-217.0,0.0003799,30]
[313699129,1707595811997,-1000.0,0.00038,38]
[313699130,1707595812018,-1495.4414447,0.00038,120]
[313699131,1707595812040,-1000.0,0.00038,38]
[313699132,1707595812063,-151.0,0.00038,30]
[313699133,1707595812086,-151.0,0.000383,30]
[313699134,1707595812110,-19200.0,0.0003838,60]
[313699135,1707595812133,-151.0,0.000386,30]
[313699136,1707595812155,-201710.75674625,0.000388,30]
[313699137,1707595817470,-577734.2077058,0.000388,30]
[313699138,1707595817494,-151.0,0.000389,30]
[313699139,1707595817517,-277.86,0.0003898,30]
[313699140,1707595817540,-205.37,0.0003898,30]
[313699141,1707595817563,-223.5,0.0003898,30]
[313699142,1707595817586,-210.91,0.0003898,30]
[313699143,1707595817609,-260.29,0.0003898,30]
[313699144,1707595817632,-6491.94,0.0003898,30]
[313699145,1707595817655,-6050.1,0.0003898,30]
[313699146,1707595817678,-275.0,0.0003899,30]
[313699147,1707595817700,-205.0,0.0003899,30]
[313699148,1707595817723,-217.0,0.0003899,30]
[313699149,1707595817745,-202.0,0.0003899,30]
[313699150,1707595817767,-260.0,0.0003899,30]
[313699151,1707595817789,-6490.0,0.0003899,30]
[313699152,1707595817813,-745.8222942,0.0003899,30]
[313699153,1707595821739,-5303.1777058,0.0003899,30]
[313699154,1707595821763,-1000.0,0.00039,39]
[313699155,1707595821787,-1000.0,0.00039,39]
[313699156,1707595821810,-4160.68571015,0.00039,120]
[313699157,1707595821833,-4200.86419796,0.00039,120]
[313699158,1707595821856,-293.52758728,0.000392,30]
[313699159,1707595821880,-4112.1,0.000393,60]
[313699160,1707595821906,-359.0,0.000394,120]
[313699161,1707595821930,-150.0,0.00039528,120]
[313699162,1707595821953,-579420.64479881,0.000397,30]
[313699163,1707595824798,-267217.77580258,0.000397,30]
[313699164,1707595824820,-18633.38356927,0.00039768,120]
[313699165,1707595824843,-14000.0,0.000399,120]
[313699166,1707595824866,-19652.47625157,0.00039919,30]
[313699167,1707595824891,-178000.0,0.0003999,60]
[313699168,1707595824915,-350.19287139,0.00039999,31]
[313699169,1707595824940,-500.0,0.00039999,31]
[313699170,1707595824962,-500.0,0.00039999,31]
[313699171,1707595824987,-500.0,0.00039999,31]
[313699172,1707595825010,-500.0,0.00039999,31]
[313699173,1707595825033,-500.0,0.00039999,31]
[313699174,1707595825057,-569.40488432,0.00039999,31]
[313699175,1707595825079,-582.57005506,0.00039999,31]
[313699176,1707595825102,-319.6139864,0.00039999,31]
[313699177,1707595825126,-500.0,0.00039999,31]
[313699178,1707595825149,-500.0,0.00039999,31]
[313699179,1707595825172,-500.0,0.00039999,31]
[313699180,1707595825195,-500.0,0.00039999,31]
[313699181,1707595825218,-500.0,0.00039999,31]
[313699182,1707595825241,-500.0,0.00039999,31]
[313699183,1707595825263,-500.0,0.00039999,31]
[313699184,1707595825286,-500.0,0.00039999,31]
[313699185,1707595825309,-500.0,0.00039999,31]
[313699186,1707595825333,-500.0,0.00039999,31]
[313699187,1707595825357,-500.0,0.00039999,31]
[313699188,1707595825380,-500.0,0.00039999,31]
[313699189,1707595825404,-500.0,0.00039999,31]
[313699190,1707595825427,-466.08200882,0.00039999,31]
[313699191,1707595825449,-500.0,0.00039999,31]
[313699192,1707595825471,-500.0,0.00039999,31]
[313699193,1707595825495,-500.0,0.00039999,31]
[313699194,1707595825517,-500.0,0.00039999,31]
[313699195,1707595825539,-500.0,0.00039999,31]
[313699196,1707595825561,-500.0,0.00039999,31]
[313699197,1707595825584,-500.0,0.00039999,31]
[313699198,1707595825606,-500.0,0.00039999,31]
[313699199,1707595825629,-500.0,0.00039999,31]
[313699200,1707595825652,-500.0,0.00039999,31]
[313699201,1707595825674,-500.0,0.00039999,31]
[313699202,1707595825697,-500.0,0.00039999,31]
[313699203,1707595825719,-500.0,0.00039999,31]
[313699204,1707595825741,-500.0,0.00039999,31]
[313699205,1707595825764,-500.0,0.00039999,31]
[313699206,1707595825786,-500.0,0.00039999,31]
[313699207,1707595825808,-206.50232037,0.00039999,31]
[313699208,1707595825831,-500.0,0.00039999,31]
[313699209,1707595825855,-500.0,0.00039999,31]
[313699210,1707595825877,-500.0,0.00039999,31]
[313699211,1707595825901,-500.0,0.00039999,31]
[313699212,1707595825923,-500.0,0.00039999,31]
[313699213,1707595825946,-500.0,0.00039999,31]
[313699214,1707595825968,-500.0,0.00039999,31]
[313699215,1707595825990,-518.65464799,0.00039999,31]
[313699216,1707595826012,-500.0,0.00039999,31]
[313699217,1707595826035,-500.0,0.00039999,31]
[313699218,1707595826058,-500.0,0.00039999,31]
[313699219,1707595826080,-500.0,0.00039999,31]
[313699220,1707595826102,-433.50727721,0.00039999,31]
[313699221,1707595826234,-500.0,0.00039999,31]
[313699222,1707595826256,-345.0,0.00039999,31]
[313699223,1707595826279,-500.0,0.00039999,31]
[313699224,1707595826300,-500.0,0.00039999,31]
[313699225,1707595826323,-500.0,0.00039999,31]
[313699226,1707595826345,-562.62073263,0.0004,90]
[313699227,1707595826368,-4262.95759869,0.0004,120]
[313699228,1707595826390,-261.7582432,0.0004,30]
[313699229,1707595826412,-200.10042891,0.0004,30]
[313699230,1707595826433,-1000.0,0.0004,120]
[313699231,1707595826455,-4400.0,0.0004,30]
[313699232,1707595826476,-63517.39932159,0.0004,30]
[313699233,1707595830119,-37108.90791607,0.0004,30]
[313699234,1707595830141,-20835.22197481,0.0004,60]
[313699235,1707595830163,-1000.0,0.0004,40]
[313699236,1707595830184,-1000.0,0.0004,40]
[313699237,1707595830205,-1000.0,0.0004,40]
[313699238,1707595830227,-323.23594789,0.0004,90]
[313699239,1707595830248,-11479.08687336,0.0004,120]
[313699240,1707595830269,-8219.72842899,0.0004,120]
[313699241,1707595830288,-31092.0,0.0004,30]
[313699242,1707595830306,-11489.8,0.0004,120]
[313699243,1707595830325,-150.0,0.0004,120]
[313699244,1707595830346,-2000.0,0.0004,120]
[313699245,1707595830367,-2000.0,0.0004,120]
[313699246,1707595830388,-2000.0,0.0004,120]
[313699247,1707595830408,-733.94314217,0.0004,120]
[313699248,1707595830427,-2000.0,0.0004,36]
[313699249,1707595830449,-2000.0,0.0004001,36]
[313699250,1707595830471,-2000.0,0.0004002,36]
[313699251,1707595830491,-3569.334047,0.0004003,36]
[313699252,1707595830509,-784.35017424,0.00040053,120]
[313699253,1707595830620,-4375.1508,0.00040413,30]
[313699254,1707595830646,-151.53182288,0.00040418,30]
[313699255,1707595830670,-2414.068745,0.0004045,120]
[313699256,1707595830691,-150.0,0.00040488,120]
[313699257,1707595830711,-20000.0,0.0004066,120]
[313699258,1707595830731,-166.6,0.00040875,30]
[313699259,1707595830752,-1597.0,0.00040897,44]
[313699260,1707595830771,-8928.48537025,0.000409,120]
[313699261,1707595830793,-200.0,0.00040983,30]
[313699262,1707595830812,-200.0,0.00040983,30]
[313699263,1707595830830,-200.0,0.00040983,30]
[313699264,1707595830849,-200.0,0.00040983,30]
[313699265,1707595830869,-200.0,0.00040983,30]
[313699266,1707595830887,-200.0,0.00040983,30]
[313699267,1707595830910,-200.0,0.00040983,30]
[313699268,1707595830929,-200.0,0.00040983,30]
[313699269,1707595830949,-200.0,0.00040983,30]
[313699270,1707595830968,-200.0,0.00040983,30]
[313699271,1707595830986,-200.0,0.00040983,30]
[313699272,1707595831005,-274.0,0.00040983,30]
[313699273,1707595831024,-1000.0,0.00041,41]
[313699274,1707595831042,-1000.0,0.00041,41]
[313699275,1707595831060,-1000.0,0.00041,41]
[313699276,1707595831081,-15000.0,0.00041,120]
[313699277,1707595831101,-1000.0,0.00041,30]
[313699278,1707595831119,-51330.5907417,0.00041,60]
[313699279,1707595831140,-119301.69489982,0.00041,60]